Cogmind - Beta 13 @@@ ROGUE MODE // 2024.06.03 @ 15:22:19 Player: SovietPaperclip Result: Self-destructed Performance ------------- Evolutions (2) 1000 Regions Visited (4) 800 Robots Destroyed (33) 165 Value Destroyed (884) 884 Prototype IDs (0) 0 Alien Tech Used (0) 0 Bonus (0) 0 TOTAL SCORE: 2849 Bonus ------- None Cogmind --------- Core Integrity 489/550 Matter 234/300 Energy 46/250 System Corruption 0% Temperature Cool (0) Movement Treading (250) Ox1 Location -8/Materials Parts ------- > --- POWER (1) -------- Ion Engine > --- PROPULSION (4) --- Armored Treads Armored Treads Armored Treads Armored Treads > --- UTILITY (4) ------ Huge Storage Unit Weight Redist. System > --- WEAPON (2) ------- Ion Cannon Ion Cannon > --- INVENTORY (25) --- Light Treads Light Treads Light Treads Armored Wheel Armored Wheel Armored Wheel Armored Wheel Armored Wheel Armored Wheel Compact Matter Pod (0) High-powered Tractor Beam Ion Cannon Light Assault Rifle Grenade Launcher Peak State ------------ > --- POWER ------------ Ion Engine > --- PROPULSION ------- Armored Treads Armored Treads Armored Treads Armored Treads > --- UTILITY ---------- Heat Sink Huge Storage Unit Weight Redist. System > --- WEAPON ----------- Ion Cannon Ion Cannon > --- INVENTORY -------- Light Treads Light Treads Light Treads Armored Wheel Armored Wheel Armored Wheel Armored Wheel Armored Wheel Armored Wheel Compact Matter Pod High-powered Tractor Beam Ion Cannon Ion Cannon Light Assault Rifle Grenade Launcher [Rating: 25] Favorites ----------- Power Ion Engine Engine Ion Engine Propulsion Armored Treads Treads Armored Treads Utility Heat Sink Device Heat Sink Storage Huge Storage Unit Weapon Ion Cannon Energy Cannon Ion Cannon Ballistic Gun Light Assault Rifle Launcher Grenade Launcher Build | -11 -10 -9 -9 -8 ------- Run | Yrd Mat Mat Min Mat Slots Evolved 4 | . . 2 . 2 Power . | . . . . . Propulsion 2 | . . 1 . 1 Utility 2 | . . 1 . 1 Weapon . | . . . . . Parts Attached 25 | 6 4 8 3 4 Power 2 | 1 . . 1 . Engine 2 | 1 . . 1 . Core . | . . . . . Reactor . | . . . . . Propulsion 6 | 2 . 3 . 1 Treads 6 | 2 . 3 . 1 Leg . | . . . . . Wheel . | . . . . . Hover . | . . . . . Flight . | . . . . . Utility 4 | 1 1 1 . 1 Device 2 | . 1 . . 1 Storage 2 | 1 . 1 . . Processor . | . . . . . Hackware . | . . . . . Protection . | . . . . . Artifact . | . . . . . Weapon 13 | 2 3 4 2 2 Energy Gun . | . . . . . Energy Cannon 8 | . 3 3 1 1 Ballistic Gun 2 | 2 . . . . Ballistic Cannon . | . . . . . Launcher 3 | . . 1 1 1 Special Weapon . | . . . . . Impact Weapon . | . . . . . Slashing Weapon . | . . . . . Piercing Weapon . | . . . . . Special Melee Weapon . | . . . . . Unidentified Prototypes . | . . . . . Parts Lost 3 | . . . 1 2 Power 1 | . . . 1 . Propulsion . | . . . . . Utility 1 | . . . . 1 Weapon 1 | . . . . 1 Highest Loss Streak 2 | . . . 1 2 To Critical Strikes . | . . . . . Average Slot Usage (%) 86 | . 91 87 87 76 Engine 11 | . 14 11 10 9 Treads 31 | . 28 32 33 29 Device 9 | . 5 11 11 10 Storage 11 | . 14 11 11 9 Energy Cannon 19 | . 11 22 22 17 Ballistic Gun 3 | . 16 . . . Naked Turns . | . . . . . Heaviest Build 98 | 12 17 98 98 98 Greatest Support 86 | 40 40 60 60 86 Greatest Overweight (x) 1 | 1 . 1 1 1 Average Overweight (x) . | . . . 1 1 Largest Inventory Capacity 25 | 8 8 25 25 25 Average Capacity 19 | 6 8 19 25 25 Most Carried 17 | 1 5 17 17 17 Average Carried 12 | . 3 11 16 16 Final Capacity 25 | 8 8 25 25 25 Final Carried 17 | 1 5 17 16 14 Class Distribution -------------------- 100% | Mutant Dominant Class ---------------- Mutant | -10/Materials Mutant | -9/Materials Mutant | -9/Mines Mutant | -8/Materials Resources | -11 -10 -9 -9 -8 ----------- Run | Yrd Mat Mat Min Mat Matter Collected 449 | 178 152 66 34 19 Remotely . | . . . . . Salvage Created 1095 | . 242 195 435 223 Parts 68 | . 25 18 17 8 Haulers Intercepted 2 | . 1 1 . . Recyclers Shooed 2 | . . 2 . . Parts Field Recycled . | . . . . . Retrieved Matter . | . . . . . Parts Self-Destructed . | . . . . . Prevented . | . . . . . Kills | -11 -10 -9 -9 -8 ------- Run | Yrd Mat Mat Min Mat Combat Hostiles Destroyed 24 | . 6 5 8 5 Guns 6 | . 6 . . . Cannons 12 | . . 2 7 3 AOE 4 | . . 3 . 1 Classes Destroyed 11 | . 5 2 3 1 Worker 2 | . 1 . 1 . Builder 1 | . . . . 1 Hauler 2 | . 1 1 . . Recycler 1 | . . . 1 . Operator 2 | . 1 1 . . Watcher 1 | . . 1 . . Swarmer 6 | . 3 3 . . Grunt 14 | . 3 . 6 5 Brawler 1 | . . . 1 . Sentry 2 | . . 2 . . Demolisher 1 | . . . 1 . Best Kill Streak 6 | . 6 4 3 6 Combat Bots Only 5 | . 3 3 3 5 Max Kills in Single Turn 2 | . 1 2 1 1 Gunslinging . | . . . . . Exploded 2 | . . 2 . 1 Melee . | . . . . . Uniques/NPCs Destroyed . | . . . . . Combat | -11 -10 -9 -9 -8 -------- Run | Yrd Mat Mat Min Mat Hostile Shots Fired 92 | . 17 5 33 37 Missed 20 | . 2 2 7 9 Damage Taken 1098 | . 120 42 493 443 Core 96 | . 12 . 23 61 Absorbed by Shields . | . . . . . Core Remaining (%) 96 | 100 95 . 94 . Volleys Fired 66 | . 17 11 20 18 Largest 2 | . 2 2 2 2 Hottest 120 | . 120 120 120 120 Shots Fired 120 | . 34 16 40 30 Gun 30 | . 30 . . . Cannon 85 | . 4 14 40 27 Launcher 5 | . . 2 . 3 Special . | . . . . . Kinetic 30 | . 30 . . . Thermal 85 | . 4 14 40 27 Explosive 5 | . . 2 . 3 Electromagnetic . | . . . . . Robot Hit Streak 12 | . 11 5 12 8 Robot Miss Streak 2 | . 2 2 1 1 Penetration Max . | . . . . . Secondary Targets 1 | . 1 . . . Max Gunslinging Chain 1 | . 1 . . . Shots Hit Robots 90 | . 24 9 33 24 Core Hits 44 | . 14 8 12 10 Critical Kills 1 | . . . . 1 Critical Parts Destroyed . | . . . . . Critical Strikes 1 | . . . . 1 Meltdown 1 | . . . . 1 Melee Attacks . | . . . . . Impact . | . . . . . Slashing . | . . . . . Piercing . | . . . . . Sneak Attacks . | . . . . . Combat Hostiles . | . . . . . Follow-up Attacks . | . . . . . Damage Inflicted 2126 | . 210 370 751 795 Guns 175 | . 175 . . . Cannons 1520 | . 35 209 751 525 Explosions 431 | . . 161 . 270 Melee . | . . . . . Ramming . | . . . . . Kinetic 175 | . 175 . . . Thermal 1520 | . 35 209 751 525 Explosive 431 | . . 161 . 270 Electromagnetic . | . . . . . Impact . | . . . . . Slashing . | . . . . . Piercing . | . . . . . Highest Corruption . | . . . . . Average Corruption . | . . . . . Corruption Purged . | . . . . . Corruption Blocked . | . . . . . Overload Shots . | . . . . . Overflow Damage 28 | . . 17 . 11 Projectiles 28 | . . 17 . 11 Explosions . | . . . . . Melee . | . . . . . Knockbacks . | . . . . . Impact . | . . . . . Kinetic . | . . . . . Secondary . | . . . . . Self-Inflicted Damage . | . . . . . Shots . | . . . . . Rammed . | . . . . . Targets Rammed . | . . . . . Kicked . | . . . . . Crushed . | . . . . . Highest Temperature 239 | . 30 21 210 239 Average Temperature 76 | . 12 14 71 110 Received Heat Transfer 396 | . 18 9 144 225 Siege Activations . | . . . . . Robots Corrupted . | . . . . . Combat Hostiles . | . . . . . Parts Fried . | . . . . . Impact Corruptions . | . . . . . Robots Melted 2 | . . . 1 1 Combat Hostiles 2 | . . . 1 1 Parts Melted 2 | . . 1 1 . Heat Transferred 2479 | . 74 333 1221 851 Parts Sabotaged . | . . . . . Parts Stolen . | . . . . . Parts Stripped . | . . . . . Power Chain Reactions . | . . . . . Alert | -11 -10 -9 -9 -8 ------- Run | Yrd Mat Mat Min Mat Peak Influence 290 | . 192 290 198 209 Initial 112 | . . 80 112 59 Average 126 | . 105 183 136 83 Maximum Alert Level 1 | . . 1 . 1 Low Security (%) 90 | 100 100 58 100 94 Level 1 9 | . . 41 . 5 Level 2 . | . . . . . Level 3 . | . . . . . Level 4 . | . . . . . Level 5 . | . . . . . High Security . | . . . . . Max Security . | . . . . . Squads Dispatched 4 | . 2 . . 2 Investigation 1 | . 1 . . . Extermination . | . . . . . Reinforcement 3 | . 1 . . 2 Assault . | . . . . . Garrison . | . . . . . Intercept . | . . . . . Searches Triggered . | . . . . . Construction Impeded 1 | . . . . 1 Haulers Reinforced . | . . . . . Active Scanning Responses . | . . . . . Cargo Convoy Interrupts . | . . . . . Stealth | -11 -10 -9 -9 -8 --------- Run | Yrd Mat Mat Min Mat Distress Signals 1 | . . 1 . . Communications Jammed . | . . . . . Distress Signals . | . . . . . Times Spotted 36 | . 9 12 8 7 Peak Tracking Total 6 | . 4 6 2 4 Tactical Retreats . | . . . . . Traps | -11 -10 -9 -9 -8 ------- Run | Yrd Mat Mat Min Mat Traps Triggered 1 | . 1 . . . Indirectly . | . . . . . Trap Hack Attempts . | . . . . . Triggered . | . . . . . Disarmed . | . . . . . Reprogrammed . | . . . . . Reused . | . . . . . Traps Extracted . | . . . . . Installed . | . . . . . Triggered . | . . . . . Machines | -11 -10 -9 -9 -8 ---------- Run | Yrd Mat Mat Min Mat Machines Disabled 1 | . . . . 1 Max in Single Turn 1 | . . . . 1 Machines Repaired . | . . . . . Machines Dismantled . | . . . . . Machines Sabotaged . | . . . . . Overloaded Fab Kills . | . . . . . Hacking | -11 -10 -9 -9 -8 --------- Run | Yrd Mat Mat Min Mat Machines Accessed 9 | . 4 2 1 2 Terminals 9 | . 4 2 1 2 Fabricators . | . . . . . Repair Stations . | . . . . . Recycling Units . | . . . . . Scanalyzers . | . . . . . Garrison Access . | . . . . . Total Hacks 15 | . 8 3 1 3 Successful 7 | . 3 2 1 1 Failed 8 | . 5 1 . 2 Catastrophic 2 | . 2 . . . Database Lockouts . | . . . . . Manual 10 | . 5 2 . 3 Terminals 15 | . 8 3 1 3 Fabricators . | . . . . . Repair Stations . | . . . . . Recycling Units . | . . . . . Scanalyzers . | . . . . . Garrison Access . | . . . . . Terminal Hacks 3 | . 1 1 1 . Part Schematic 1 | . 1 . . . Alert Level 1 | . . 1 . . Zone Layout 1 | . . . 1 . Fabricator Hacks . | . . . . . Repair Station Hacks . | . . . . . Recycling Unit Hacks . | . . . . . Scanalyzer . | . . . . . Garrison Access Hacks . | . . . . . Unauthorized Hacks 4 | . 2 1 . 1 Terminals 4 | . 2 1 . 1 Botnet 4 | . 2 1 . 1 Fabricators . | . . . . . Repair Stations . | . . . . . Recycling Units . | . . . . . Scanalyzers . | . . . . . Garrison Access . | . . . . . Data Cores Recovered 1 | . 1 . . . Used . | . . . . . Hacking Detections 5 | . 2 1 . 2 Full Trace Events . | . . . . . Feedback Events . | . . . . . Feedback Blocked . | . . . . . Robot Schematics Acquired . | . . . . . Robots Built . | . . . . . Authchips . | . . . . . Time . | . . . . . Total Robot Build Rating . | . . . . . Part Schematics Acquired 1 | . 1 . . . Parts Built . | . . . . . Authchips . | . . . . . Time . | . . . . . Total Part Build Rating . | . . . . . Parts Repaired . | . . . . . Time . | . . . . . Parts Recycled . | . . . . . Recycled Matter . | . . . . . Retrieved Matter . | . . . . . Retrieved Components . | . . . . . Parts Scanalyzed . | . . . . . Part Schematics Acquired . | . . . . . Parts Damaged . | . . . . . Bothacking | -11 -10 -9 -9 -8 ------------ Run | Yrd Mat Mat Min Mat Used RIF Installer . | . . . . . Robots Hacked . | . . . . . Non-combat . | . . . . . Combat . | . . . . . Robot Hacks Applied . | . . . . . Relay Couplers Released . | . . . . . Fabnet Peak Effective % . | . . . . . Robots Rewired . | . . . . . Allies Hacked . | . . . . . Hacks Repelled . | . . . . . Allies | -11 -10 -9 -9 -8 -------- Run | Yrd Mat Mat Min Mat Total Allies . | . . . . . Largest Group . | . . . . . Highest-Rated Group . | . . . . . Highest-Rated Ally . | . . . . . Total Orders . | . . . . . Ally Attacks . | . . . . . Total Damage . | . . . . . Kills . | . . . . . Allies Corrupted . | . . . . . Allies Melted . | . . . . . Intel | -11 -10 -9 -9 -8 ------- Run | Yrd Mat Mat Min Mat Robot Analysis Total . | . . . . . Derelict Logs Recovered 1 | . . . 1 . Drone Launches . | . . . . . Drone Recoveries . | . . . . . Exploration | -11 -10 -9 -9 -8 ------------- Run | Yrd Mat Mat Min Mat Turns Passed 1764 | 79 328 372 712 273 Spaces Moved 679 | 48 160 132 256 83 Core 10 | 10 . . . . Treads 669 | 38 160 132 256 83 Legs . | . . . . . Wheels . | . . . . . Hover . | . . . . . Flight . | . . . . . Fastest Speed 50 | 50 160 160 250 250 Average Speed 215 | 145 160 218 250 250 Slowest Speed 250 | 160 160 250 250 250 Overloaded Moves . | . . . . . Propulsion Burnouts . | . . . . . Robots Hopped . | . . . . . Cave-ins Triggered . | . . . . . Exploration Rate (%) 27 | 4 35 18 70 12 Regions Visited 4 Branch Regions 1 Pre-discovered Areas . | . . . . . Known Exits Taken . | . . . . . Unknown Exits Taken 4 | 1 1 1 1 . Scrap Searched 1 | . . . 1 . Spaces Dug 10 | . . 10 . . Terrain Destroyed 32 | . . 12 3 17 Melee . | . . . . . Projectile 6 | . . 2 3 1 AOE 26 | . . 10 . 16 Terrain Rammed . | . . . . . Walls Destroyed . | . . . . . Machines Disabled . | . . . . . Actions | -11 -10 -9 -9 -8 --------- Run | Yrd Mat Mat Min Mat Total 862 | 54 203 199 288 118 Wait 71 | . 17 32 10 12 Move 675 | 47 159 131 255 83 Hop . | . . . . . Pick Up 19 | 1 5 12 . 1 Fast Attach 11 | 6 1 4 . . Attach 4 | . . . 1 3 Detach . | . . . . . Swap 10 | . 3 4 2 1 Drop 6 | . 1 5 . . Fire 66 | . 17 11 20 18 Melee . | . . . . . Ram . | . . . . . Kick . | . . . . . Crush . | . . . . . Escape Stasis . | . . . . . Rewire . | . . . . . Trap . | . . . . . Miscellaneous . | . . . . . Route ------- -11/Scrapyard -10/Materials -9/Materials -9/Mines -8/Materials (discovered 1 exit: [*Sto]) History --------- Turn | Location | Event 2 | -11/Scrapyard | Met Revision 17 10 | -11/Scrapyard | Discovered new exit (range 16) 80 | -11/Scrapyard | Entered Materials 314 | -10/Materials | Build established: Mutant 400 | -10/Materials | Discovered new exit (range 7) 408 | -10/Materials | Entered another Materials area 408 | -9/Materials | Evolved 2 slots: Propulsion x1, Utility x1 583 | -9/Materials | Discovered new exit (range 7) 780 | -9/Materials | Entered Mines 1101 | -9/Mines | Learned Materials trap positions 1449 | -9/Mines | Assembled infested the area 1454 | -9/Mines | Assisted by a Guerilla fighting off Assembled 1481 | -9/Mines | Discovered new exit (range 4) 1492 | -9/Mines | Entered Materials 1492 | -8/Materials | Evolved 2 slots: Propulsion x1, Utility x1 1492 | -8/Materials | Discovered new exit (range 8) 1493 | -8/Materials | Loaded intel: 8 trap records 1765 | -8/Materials | Self-destructed Last Messages --------------- 01732_ G-47 Trooper destroyed. 01734_ U-05 Engineer lays Concrete. 01734_ U-05 Engineer destroyed. 01736_ ALERT: Construction progress impeded, dispatching reinforcements to local area. 01740_ G-47 Trooper destroyed. 01741_ R-06 Scavenger collects Terrain Scan Processor. 01745_ R-06 Scavenger collects Aluminum Leg. 01746_ Atomic Centrifuge disabled. 01747_ The unstable cave ceiling collapses. 01749_ G-47 Trooper suffers critical hit (Meltdown). 01749_ R-06 Scavenger collects Aluminum Leg. 01751_ Destroyed Carbon-fiber Leg. 01751_ G-50 Soldier destroyed. 01755_ R-06 Scavenger collects Structural Scanner. 01758_ Acquired 19 matter. 01759_ R-06 Scavenger collects Wheel. Map ----- +----------------------------------------------------+ | | | | | | | | | | | | | | | | | | | | | | | | | ?????????????????????????????????????????????????? | | ?????????????????????????????????????????????????? | | ###??????????????????????????????################# | | ################################ | | | | | | ############### ###### !=! | | ##### ##?????????## # !=! | | ######+####??????## + =!! | | # #??????# % ####### = | | # # ####% % """ #??????? / | | + # *% """ #???????? #####? | | # #?????## # " #??????????#????? | | ###########??????## [#"@ #???????????????? | | #?????????????????# =%# #???????????????? | | #????????????????# #####+#####???????????????? | | ?????????????????????? ??????????????????? | | ??????????????????? ????????????????? | | ???????????????? ! ??????????????? | | ### ??????????????+##### ????????????? | | ###?? ??????????????????# ??????????? | | ?????? #?????????????????# """ """ ""????????? | | ??????? #?????????????????# """ """ "?????????? | | ??????????????????????????# """ """? ??????????? | | ??????????????????????????# ?????????????? | | ??????????????????????????# ??? ????????????? | | ??????????????????????????# ##????##?????????????? | | ??????????????????????????# ?????????????????????? | | ??????????????????????????? ?????????????????????? | | ??????????????????????????? ?????????????????????? | | ??????????????????????????? ?????????????????????? | | ?????????????????????????????????????????????????? | | ?????????????????????????????????????????????????? | | ?????????????????????????????????????????????????? | | ?????????????????????????????????????????????????? | | ?????????????????????????????????????????????????? | | ?????????????????????????????????????????????????? | | ?????????????????????????????????????????????????? | +----------------------------------------------------+ Best States ------------- Heat Dissipation 41 Energy Generation 10 Energy Capacity 250 Matter Stores 300 Matter Capacity 300 Sight Range 16 Terrain Scan Density 10 Additional Mass Support 6 Evasion (%) 40 Recoil Reduction 4 Item Schematics ----------------- Cargo Storage Unit | -10/Materials | Hacked Robot Schematics ------------------ None Fabricated ------------ Nothing Alien Tech Used ----------------- None Achievements -------------- None Challenges ------------ None Game ------ Seed TractorDrainedFrame Manual? 0 Play Time 00:11:59 Cumulative 116.0 hours Start 2024.04.28 @ 14:24:53 End 2024.06.03 @ 15:22:19 Sessions 3 Manual Loads 0 Difficulty Rogue Special Mode None Game No. 151 Rogue 151 Adventurer 0 Explorer 0 Win Type - Total 1 Types 1/0/0/0/0/0/0/0/0 Lore% 48 Gallery% 53 Achievement% 50 Wizard Run 0 Options --------- Layout 1 ASCII 0 Keyboard 0 Movement Mouse Keybinds 0 Fullscreen 1 Font 32/SmallcapsGlow Map View 50x35 Zoom Use 0% Tactical HUD 1 Map Filters NONE Filters NONE Steam 1 RUN: 41ba14ee-41a2-4dd1-a989-c8b26129482e